[Event "44th Chess Olympiad Open 2022"]
[Site "Chennai"]
[Date "2022.08.05"]
[Round "7.24"]
[White "Yordanov, Lachezar"]
[Black "Markoja, Boris"]
[Result "1/2-1/2"]
[ECO "E45"]
[WhiteElo "2316"]
[BlackElo "2452"]
[Annotator "ChessBase"]
[PlyCount "63"]
[EventDate "2022.07.29"]
[EventType "team-tourn"]
[EventCountry "IND"]
[SourceTitle "playchess.com"]
[Source "ChessBase"]
[SourceQuality "1"]
[WhiteTeam "Bulgaria"]
[BlackTeam "Slovenia"]
[WhiteTeamCountry "BUL"]
[BlackTeamCountry "SLO"]
[TimeControl "40/5400+30:1800+30"]

1. d4 {[%emt 0:00:04]} Nf6 {[%emt 0:00:08]} 2. c4 {[%emt 0:00:04]} e6 {[%emt 0:00:08]} 3. Nc3 {[%emt 0:00:07]} Bb4 {[%emt 0:00:26]} 4. e3 {[%emt 0:00:11]} b6 {[%emt 0:00:55]} 5. Nge2 {[%emt 0:00:19]} Ba6 {[%emt 0:07:12]} 6. a3 {[%emt 0:14:45]} Be7 {[%emt 0:00:24]} 7. Ng3 {[%emt 0:00:38]} d5 {[%emt 0:00:52]} 8. cxd5 {[%emt 0:05:03]} Bxf1 {[%emt 0:00:13]} 9. Nxf1 {[%emt 0:00:09]} exd5 {[%emt 0:03:15]} 10. b4 {[%emt 0:06:58]} O-O {[%emt 0:05:50]} 11. Ng3 {[%emt 0:01:01]} c5 {[%emt 0:05:28]} 12. bxc5 {[%emt 0:02:45]} bxc5 {[%emt 0:00:13]} 13. dxc5 {[%emt 0:01:21]} Na6 {[%emt 0:16:52]} 14. Nf5 {[%emt 0:09:20]} Bxc5 {[%emt 0:07:40]} 15. O-O {[%emt 0:04:25]} Re8 {[%emt 0:03:22]} 16. Qd3 {[%emt 0:04:07]} Nc7 {[%emt 0:01:54]} 17. Bb2 {[%emt 0:03:35]} Bf8 {[%emt 0:02:29]} 18. Rfd1 {[%emt 0:01:14]} Rb8 {[%emt 0:03:19]} 19. Rab1 {[%emt 0:03:57]} Qd7 {[%emt 0:00:56]} 20. Ne2 {[%emt 0:05:18]} Ne4 {[%emt 0:01:22]} 21. Neg3 {[%emt 0:00:38]} Nxg3 {[%emt 0:10:59]} 22. Nxg3 {[%emt 0:10:38]} Rb7 {[%emt 0:01:18]} 23. Ba1 {[%emt 0:00:00]} Rxb1 {[%emt 0:05:46]} 24. Rxb1 {[%emt 0:00:00]} Qa4 {[%emt 0:04:04]} 25. Nf5 {[%emt 0:03:48]} Ne6 {[%emt 0:01:00]} 26. h3 {[%emt 0:02:17]} Qc4 {[%emt 0:04:16]} 27. Rd1 {[%emt 0:02:53]} Rc8 {[%emt 0:00:56]} 28. Be5 {[%emt 0:02:21]} Qe4 {[%emt 0:04:38]} 29. Qxe4 {[%emt 0:02:01]} dxe4 {[%emt 0:00:18]} 30. Bxg7 {[%emt 0:00:33]} Nxg7 {[%emt 0:00:11]} 31. Nh6+ {[%emt 0:00:05]} Kh8 {[%emt 0:00:03]} 32. Nxf7+ {[%emt 0:00:06]} 1/2-1/2

[Event "44th Chess Olympiad Open 2022"]
[Site "Chennai"]
[Date "2022.08.05"]
[Round "7.25"]
[White "Morovic Fernandez, Ivan"]
[Black "Miezis Normunds"]
[Result "1-0"]
[ECO "E46"]
[WhiteElo "2489"]
[BlackElo "2446"]
[Annotator "TA"]
[PlyCount "117"]
[EventDate "2022.07.29"]
[EventType "team-tourn"]
[EventCountry "IND"]
[SourceTitle "playchess.com"]
[Source "ChessBase"]
[SourceQuality "1"]
[WhiteTeam "Chile"]
[BlackTeam "Latvia"]
[WhiteTeamCountry "CHI"]
[BlackTeamCountry "LAT"]
[TimeControl "40/5400+30:1800+30"]

{[%evp 9,117,0,29,10,15,0,26,0,0,0,48,20,20,19,39,49,43,52,46,43,51,52,52,56,58,52,54,56,60,62,65,72,98,85,93,61,102,116,145,105,116,83,100,0,110,85,117,116,318,299,339,333,449,438,422,225,240,235,233,221,188,186,296,212,504,323,469,407,392,382,399,387,352,302,365,327,390,388,385,362,333,314,598,607,601,589,520,499,497,487,487,483,1054,1116,1119,1087,1119,1068,914,801,1754,1708,29972,29972,29971,29972,6228,9832,4898,4718]} 1. d4 {[%emt 0:00:21]} Nf6 {[%emt 0:00:21]} 2. c4 {[%emt 0:00:16]} e6 {[%emt 0:00:37]} 3. Nc3 {[%emt 0:00:46]} Bb4 {[%emt 0:00:51]} 4. e3 {[%emt 0:00:30]} O-O {[%emt 0:05:41]} 5. Bd2 {[%emt 0:01:22]} d6 {[%emt 0:07:24]} 6. Nf3 {[%emt 0:11:42] E46: Nimzo-Indian: Rubinstein: 4 e3 0-0 5 Ne2 without early Bd3.} c5 {[%emt 0:12:52]} 7. a3 {[%emt 0:06:53]} Ba5 {[%emt 0:02:42]} 8. dxc5 {[%emt 0:03:28] White has an edge.} dxc5 {[%emt 0:00:42]} 9. Qc2 {[%emt 0:00:18]} Nc6 {[%emt 0:01:43]} (9... b6 $11 {is more appropriate.}) 10. Bd3 {[%emt 0:05:50]} Qe7 {[%emt 0:02:41]} 11. O-O-O {[%emt 0:04:01]} Bxc3 {[%emt 0:06:13]} 12. Bxc3 {[%emt 0:02:05]} (12. bxc3 e5 13. e4 b6 $17) 12... e5 {[%emt 0:00:29]} 13. Ng5 {[%emt 0:05:08] Against e4} h6 {[%emt 0:00:55] [#]} 14. Nh7 $146 {[%emt 0:05:14]} ({Predecessor:} 14. h4 Be6 15. Nxe6 Qxe6 16. g4 Qxg4 17. Rhg1 Qe6 18. f4 Rfd8 19. Rdf1 e4 20. Qg2 {1-0 (30) Martinovic,S (2529)-Durakovic,A (2292) Sarajevo 2016}) 14... Nxh7 {[%emt 0:01:06]} 15. Bxh7+ {[%emt 0:00:03] This bishop pair is nice.} Kh8 {[%emt 0:00:10]} 16. Be4 {[%emt 0:00:05]} Bd7 {[%emt 0:09:33]} 17. Rd2 {[%emt 0:13:32]} f6 {[%emt 0:06:16]} 18. Rhd1 {[%emt 0:03:25]} Be6 {[%emt 0:02:47]} 19. Bd5 {[%emt 0:11:09]} Rac8 {[%emt 0:06:58]} 20. Qe4 {[%emt 0:03:09]} Rc7 {[%emt 0:08:33]} 21. Bxe6 {[%emt 0:04:24]} Qxe6 {[%emt 0:00:00]} 22. Rd6 {[%emt 0:00:07]} Qe8 {[%emt 0:06:38]} 23. g4 {[%emt 0:02:26]} a6 {[%emt 0:01:23]} 24. R6d5 {[%emt 0:02:57]} Qe7 {[%emt 0:06:17]} 25. Qf5 {[%emt 0:01:22] Threatens to win with Rd7.} Qe8 {[%emt 0:03:56]} 26. Qe4 {[%emt 0:01:42] 0x0.001eb8dae1d0dp-1022s more active pieces.} ({Stronger than} 26. Rxc5 Ne7 27. Rxe5 (27. Rxc7 Nxf5 28. gxf5 Rf7 $17) 27... Nxf5 $17) 26... Qe7 $1 {[%emt 0:01:24]} 27. Qd3 {[%emt 0:05:00]} e4 {[%emt 0:01:41]} 28. Qe2 {[%emt 0:02:00]} Rb8 $2 {[%emt 0:00:37] [#] A mistake that costs the game.} (28... Qf7 $16) 29. g5 $1 $18 {[%emt 0:01:57]} hxg5 {[%emt 0:00:29]} 30. h4 {[%emt 0:00:44]} gxh4 {[%emt 0:00:31]} 31. Qg4 {[%emt 0:00:42] And now Rh5+ would win.} Kg8 {[%emt 0:00:40]} 32. Rd7 {[%emt 0:00:56]} (32. Rh5 $142) 32... Rxd7 {[%emt 0:00:40]} 33. Rxd7 {[%emt 0:00:04]} Qf8 {[%emt 0:00:10]} 34. Qxe4 {[%emt 0:01:03] [#] Hoping for Qd5+.} Nd8 {[%emt 0:01:03]} 35. Qxh4 $40 {[%emt 0:01:29][%mdl 128] White goes for the king.} b5 {[%emt 0:00:04]} (35... Nf7 {is a better defense.} 36. Qg4 Nd6 37. Qe6+ Nf7) 36. Qg3 {[%emt 0:00:47]} Nc6 {[%emt 0:00:12]} (36... Rc8 37. Qg4 Rc6) 37. Qc7 {[%emt 0:00:32]} b4 {[%emt 0:00:40]} (37... Ne5 {was worth a try.}) 38. Qxc6 {[%emt 0:00:11]} bxc3 {[%emt 0:00:08][%mdl 4096] Endgame KQR-KQR} 39. Qe6+ {[%emt 0:00:39]} Kh7 {[%emt 0:00:06]} 40. Qf5+ {[%emt 0:00:40]} Kh8 {[%emt 0:00:25]} 41. bxc3 {[%emt 0:11:09]} Qe8 {[%emt 0:02:49]} 42. Qg4 {[%emt 0:04:25][%csl Gd7][%cal Rg4g7]} Qf8 {[%emt 0:00:33]} 43. Qh3+ {[%emt 0:00:50]} Kg8 {[%emt 0:00:08]} 44. Qe6+ {[%emt 0:00:19]} Kh7 {[%emt 0:00:44]} 45. Rd5 {[%emt 0:04:07]} Rd8 $2 {[%emt 0:03:43]} (45... Kg6 46. a4 Re8 47. Qxa6 Qh8) 46. Qe4+ {[%emt 0:02:24]} g6 {[%emt 0:01:03]} 47. Rh5+ {[%emt 0:01:10]} Kg8 {[%emt 0:02:38]} 48. Qxg6+ {[%emt 0:00:21]} Qg7 {[%emt 0:00:07]} 49. Qxg7+ {[%emt 0:00:20]} Kxg7 {[%emt 0:00:10]} 50. Rxc5 {[%emt 0:00:01] Black must now prevent Kc2. KR-KR} Kg6 {[%emt 0:00:12]} (50... Kf7 $142 51. Rc7+ Kg6) 51. Kc2 {[%emt 0:00:26]} Rd6 {[%emt 0:00:27]} 52. Rd5 {[%emt 0:00:22]} Rc6 {[%emt 0:00:16]} 53. c5 {[%emt 0:00:08][%cal Bc4c5,Bc5c6][%mdl 32]} Rc8 {[%emt 0:00:10]} 54. Kd3 {[%emt 0:00:38]} f5 {[%emt 0:00:04]} 55. Kd4 {[%emt 0:00:35] Rd6+ is the strong threat.} a5 {[%emt 0:00:11]} 56. Rd6+ {[%emt 0:00:53]} Kg5 {[%emt 0:00:08]} 57. c6 {[%emt 0:00:08]} Kg4 {[%emt 0:00:13]} 58. Kc5 {[%emt 0:00:20] Threatening mate with Rd4+.} Kf3 {[%emt 0:00:08]} 59. Rd2 {[%emt 0:01:26] Weighted Error Value: White=0.20 (precise) /Black=0.54} 1-0

[Event "44th Chess Olympiad Open 2022"]
[Site "Chennai"]
[Date "2022.08.05"]
[Round "7.25"]
[White "Kantans, Toms"]
[Black "Henriquez Villagra, Cristobal"]
[Result "1-0"]
[ECO "B31"]
[WhiteElo "2486"]
[BlackElo "2620"]
[Annotator "ChessBase"]
[PlyCount "63"]
[EventDate "2022.07.29"]
[EventType "team-tourn"]
[EventCountry "IND"]
[SourceTitle "playchess.com"]
[Source "ChessBase"]
[SourceQuality "1"]
[WhiteTeam "Latvia"]
[BlackTeam "Chile"]
[WhiteTeamCountry "LAT"]
[BlackTeamCountry "CHI"]
[TimeControl "40/5400+30:1800+30"]

1. e4 {[%emt 0:00:07]} c5 {[%emt 0:00:22]} 2. Nf3 {[%emt 0:00:14]} Nc6 {[%emt 0:00:12]} 3. Bb5 {[%emt 0:00:30]} g6 {[%emt 0:00:32]} 4. c3 {[%emt 0:01:40]} Nf6 {[%emt 0:03:30]} 5. Qa4 {[%emt 0:00:54]} Qb6 {[%emt 0:09:06]} 6. Na3 {[%emt 0:11:30]} Qc7 {[%emt 0:18:24]} 7. O-O {[%emt 0:00:00]} Bg7 {[%emt 0:03:28]} 8. Re1 {[%emt 0:00:00]} O-O {[%emt 0:07:12]} 9. e5 {[%emt 0:07:24]} Nd5 {[%emt 0:00:52]} 10. Qe4 {[%emt 0:01:41]} Nb6 {[%emt 0:11:50]} 11. d4 {[%emt 0:10:50]} cxd4 {[%emt 0:00:00]} 12. cxd4 {[%emt 0:00:09]} d5 {[%emt 0:00:20]} 13. Qh4 {[%emt 0:03:21]} f6 {[%emt 0:00:00]} 14. e6 {[%emt 0:06:24]} Qd6 {[%emt 0:08:09]} 15. Bf4 {[%emt 0:07:36]} Qb4 {[%emt 0:11:14]} 16. Bd3 {[%emt 0:03:27]} Na4 {[%emt 0:00:00]} 17. Nb5 {[%emt 0:09:31]} Nxb2 {[%emt 0:14:12]} 18. Rab1 {[%emt 0:06:14]} Nxd3 {[%emt 0:00:00]} 19. Rxb4 {[%emt 0:05:22]} Nxe1 {[%emt 0:00:00]} 20. Nxe1 {[%emt 0:08:31]} Nxb4 {[%emt 0:00:00]} 21. Nc7 {[%emt 0:00:00]} Rb8 {[%emt 0:00:00]} 22. Qh3 {[%emt 0:00:54]} Rd8 {[%emt 0:02:18]} 23. Qc3 {[%emt 0:01:51]} Nc6 {[%emt 0:01:48]} 24. h4 {[%emt 0:02:19]} Bd7 {[%emt 0:03:31]} 25. exd7 {[%emt 0:01:24]} e5 {[%emt 0:00:59]} 26. dxe5 {[%emt 0:01:18]} fxe5 {[%emt 0:00:00]} 27. Bg5 {[%emt 0:01:11]} Rxd7 {[%emt 0:00:00]} 28. Nxd5 {[%emt 0:00:34]} Kh8 {[%emt 0:00:00]} 29. Qc4 {[%emt 0:01:46]} Rf8 {[%emt 0:01:51]} 30. Nf3 {[%emt 0:01:38]} Nd4 {[%emt 0:03:17]} 31. Nxd4 {[%emt 0:00:19]} exd4 {[%emt 0:00:02]} 32. Be7 {[%emt 0:01:35]} 1-0

[Event "44th Chess Olympiad Open 2022"]
[Site "Chennai"]
[Date "2022.08.05"]
[Round "7.25"]
[White "Perez Gormaz, Matias"]
[Black "Ungurs, Edgars"]
[Result "1-0"]
[ECO "B49"]
[WhiteElo "2387"]
[BlackElo "2206"]
[Annotator "ChessBase"]
[PlyCount "71"]
[EventDate "2022.07.29"]
[EventType "team-tourn"]
[EventCountry "IND"]
[SourceTitle "playchess.com"]
[Source "ChessBase"]
[SourceQuality "1"]
[WhiteTeam "Chile"]
[BlackTeam "Latvia"]
[WhiteTeamCountry "CHI"]
[BlackTeamCountry "LAT"]
[TimeControl "40/5400+30:1800+30"]

1. e4 {[%emt 0:00:10]} c5 {[%emt 0:00:13]} 2. Nf3 {[%emt 0:00:16]} e6 {[%emt 0:00:11]} 3. d4 {[%emt 0:00:48]} cxd4 {[%emt 0:00:08]} 4. Nxd4 {[%emt 0:00:05]} Nc6 {[%emt 0:00:22]} 5. Nc3 {[%emt 0:06:21]} Qc7 {[%emt 0:00:28]} 6. Be3 {[%emt 0:04:49]} a6 {[%emt 0:02:14]} 7. Be2 {[%emt 0:05:26]} Nf6 {[%emt 0:01:03]} 8. O-O {[%emt 0:00:09]} Bb4 {[%emt 0:05:05]} 9. Nxc6 {[%emt 0:01:35]} bxc6 {[%emt 0:00:56]} 10. f4 {[%emt 0:07:11]} O-O {[%emt 0:05:52]} 11. e5 {[%emt 0:02:41]} Nd5 {[%emt 0:00:33]} 12. Nxd5 {[%emt 0:00:28]} cxd5 {[%emt 0:00:18]} 13. c3 {[%emt 0:04:41]} Be7 {[%emt 0:05:48]} 14. Bd4 {[%emt 0:01:08]} d6 {[%emt 0:13:29]} 15. Bd3 {[%emt 0:00:26]} f5 {[%emt 0:37:02]} 16. exd6 {[%emt 0:05:37]} Bxd6 {[%emt 0:00:15]} 17. Qd2 {[%emt 0:00:55]} Bc5 {[%emt 0:02:55]} 18. b4 {[%emt 0:16:15]} Bxd4+ {[%emt 0:00:50]} 19. cxd4 {[%emt 0:02:10]} Qb6 {[%emt 0:01:50]} 20. Be2 {[%emt 0:00:11]} Bd7 {[%emt 0:01:44]} 21. Rfc1 {[%emt 0:00:10]} Bb5 {[%emt 0:05:47]} 22. Bxb5 {[%emt 0:00:18]} axb5 {[%emt 0:09:12]} 23. Qe3 {[%emt 0:03:19]} Rfc8 {[%emt 0:02:27]} 24. Rc5 {[%emt 0:00:12]} Rxc5 {[%emt 0:00:17]} 25. dxc5 {[%emt 0:02:10]} Qc6 {[%emt 0:00:25]} 26. a3 {[%emt 0:02:10]} Rd8 {[%emt 0:00:33]} 27. Re1 {[%emt 0:03:55]} Kf7 {[%emt 0:00:29]} 28. Qd4 {[%emt 0:00:16]} Ra8 {[%emt 0:01:13]} 29. Re3 {[%emt 0:00:10]} Ra7 {[%emt 0:00:23]} 30. Qe5 {[%emt 0:02:48]} Rb7 {[%emt 0:00:20]} 31. h3 {[%emt 0:00:51]} Rd7 {[%emt 0:00:32]} 32. Rg3 {[%emt 0:03:13]} Kf8 {[%emt 0:02:57]} 33. Qb8+ {[%emt 0:00:13]} Kf7 {[%emt 0:00:05]} 34. Qh8 {[%emt 0:00:26]} Kf6 {[%emt 0:01:03]} 35. Qxh7 {[%emt 0:00:27]} Rf7 {[%emt 0:00:30]} 36. Qh4+ {[%emt 0:00:12]} 1-0

[Event "44th Chess Olympiad Open 2022"]
[Site "Chennai"]
[Date "2022.08.05"]
[Round "7.25"]
[White "Reimanis, Ritvars"]
[Black "Lopez Silva, Hugo"]
[Result "0-1"]
[ECO "E75"]
[WhiteElo "2377"]
[BlackElo "2403"]
[Annotator "RC"]
[PlyCount "98"]
[EventDate "2022.07.29"]
[EventType "team-tourn"]
[EventCountry "IND"]
[SourceTitle "playchess.com"]
[Source "ChessBase"]
[SourceQuality "1"]
[WhiteTeam "Latvia"]
[BlackTeam "Chile"]
[WhiteTeamCountry "LAT"]
[BlackTeamCountry "CHI"]
[TimeControl "40/5400+30:1800+30"]

1. d4 {[%emt 0:00:09]} Nf6 {[%emt 0:00:40]} 2. Nf3 {[%emt 0:00:20]} g6 {[%emt 0:01:08]} 3. c4 {[%emt 0:00:16]} c5 {[%emt 0:01:16]} 4. d5 {[%emt 0:00:26]} d6 {[%emt 0:00:42]} 5. Nc3 {[%emt 0:01:31]} Bg7 {[%emt 0:02:52]} 6. e4 {[%emt 0:04:47]} O-O {[%emt 0:02:37]} 7. Be2 {[%emt 0:11:02]} e6 {[%emt 0:00:40]} 8. O-O {[%emt 0:00:34]} exd5 {[%emt 0:00:04]} 9. exd5 {[%emt 0:00:15]} Bg4 {[%emt 0:02:31]} 10. h3 {[%emt 0:02:03]} Bxf3 {[%emt 0:00:05]} 11. Bxf3 {[%emt 0:00:04]} Nbd7 {[%emt 0:01:12]} 12. Bg5 {[%emt 0:04:46]} a6 {[%emt 0:03:18]} 13. a4 {[%emt 0:13:08]} Re8 {[%emt 0:02:59]} 14. Qd2 {[%emt 0:13:35]} Qb6 {[%emt 0:06:25]} 15. a5 {[%emt 0:06:40]} Qc7 {[%emt 0:00:09]} 16. Ra3 {[%emt 0:07:43]} Re7 {[%emt 0:23:24]} 17. Re1 {[%emt 0:11:35]} Ne5 {[%emt 0:02:20]} 18. Be2 {[%emt 0:00:01]} Rae8 {[%emt 0:00:06]} 19. Rb1 {[%emt 0:02:09]} Ned7 {[%emt 0:01:38]} 20. Bd3 {[%emt 0:00:10]} Ne5 {[%emt 0:04:20]} 21. Bf1 {[%emt 0:04:21]} Ned7 {[%emt 0:03:20]} 22. Bd3 {[%emt 0:01:40]} Ne5 {[%emt 0:03:29]} 23. Bf1 {[%emt 0:01:44]} Ned7 {[%emt 0:04:25]} 24. f3 {[%emt 0:04:51]} Re5 {[%emt 0:03:40]} 25. Bf4 {[%emt 0:00:19]} R5e7 {[%emt 0:00:22]} 26. g4 {[%emt 0:00:15]} Ne5 {[%emt 0:07:21]} 27. Kg2 {[%emt 0:00:05]} h5 {[%emt 0:02:51]} 28. Bg5 {[%emt 0:02:12]} hxg4 {[%emt 0:04:19]} 29. hxg4 {[%emt 0:00:01]} Rd7 {[%emt 0:00:21]} 30. Re1 {[%emt 0:03:07]} Nh7 {[%emt 0:08:25]} 31. f4 {[%emt 0:02:49]} Nxg5 {[%emt 0:00:10]} 32. fxe5 {[%emt 0:00:02]} Qd8 {[%emt 0:01:23]} 33. exd6 {[%emt 0:00:01]} Rxe1 {[%emt 0:00:53]} 34. Qxe1 {[%emt 0:00:01]} Rxd6 {[%emt 0:01:24]} 35. Ne4 {[%emt 0:00:54]} Nxe4 {[%emt 0:02:13]} 36. Qxe4 {[%emt 0:00:01]} Bxb2 {[%emt 0:00:38]} 37. Re3 {[%emt 0:02:54]} Qg5 {[%emt 0:03:00]} 38. Rh3 {[%emt 0:00:01]} Kg7 {[%emt 0:01:00]} 39. Be2 {[%emt 0:00:10]} Bd4 {[%emt 0:00:58]} 40. Rf3 {[%emt 0:01:23]} Rd8 {[%emt 0:01:15]} 41. Rh3 {[%emt 0:12:14]} Kf8 {[%emt 0:07:45]} 42. Qf3 {[%emt 0:06:16]} Re8 {[%emt 0:02:39]} 43. Rh7 {[%emt 0:00:28]} Bg7 {[%emt 0:14:17]} 44. Rh3 {[%emt 0:01:21]} Qd2 {[%emt 0:00:30]} 45. Kf1 {[%emt 0:00:17]} Bd4 {[%emt 0:04:37]} 46. Qd3 {[%emt 0:01:13]} Qxa5 {[%emt 0:00:48]} 47. Rf3 {[%emt 0:06:11]} Kg7 {[%emt 0:00:52]} 48. Bd1 {[%emt 0:00:38]} Qe1+ {[%emt 0:00:08]} 49. Kg2 {[%emt 0:00:01]} Qg1+ {[%emt 0:00:09]} 0-1

[Event "44th Chess Olympiad Open 2022"]
[Site "Chennai"]
[Date "2022.08.05"]
[Round "7.26"]
[White "Gretarsson, Hjorvar Steinn"]
[Black "Matamoros Franco, Carlos S."]
[Result "1/2-1/2"]
[ECO "D36"]
[WhiteElo "2563"]
[BlackElo "2459"]
[Annotator "TA"]
[PlyCount "120"]
[EventDate "2022.07.29"]
[EventType "team-tourn"]
[EventCountry "IND"]
[SourceTitle "playchess.com"]
[Source "ChessBase"]
[SourceQuality "1"]
[WhiteTeam "Iceland"]
[BlackTeam "Ecuador"]
[WhiteTeamCountry "ISL"]
[BlackTeamCountry "ECU"]
[TimeControl "40/5400+30:1800+30"]

{[%evp 21,120,19,22,14,19,21,26,0,8,0,0,0,0,0,6,3,6,6,8,0,7,0,0,0,0,0,14,0,10,13,23,22,21,18,18,7,10,8,19,4,5,7,16,16,19,16,16,16,16,16,23,23,20,20,24,24,24,16,24,16,24,16,16,16,24,16,16,16,24,16,24,16,16,4,4,4,4,0,0,0,0,0,0,0,0,0,0,0,0,0,0,0,0,-8,-8,-8,0,0,-9,-1,0]} 1. c4 {[%emt 0:00:05]} e6 {[%emt 0:00:16]} 2. Nc3 {[%emt 0:00:08]} d5 {[%emt 0:00:12]} 3. d4 {[%emt 0:00:07]} Nf6 {[%emt 0:00:24]} 4. cxd5 {[%emt 0:00:09]} exd5 {[%emt 0:00:05]} 5. Bg5 {[%emt 0:00:12]} c6 {[%emt 0:00:16]} 6. e3 {[%emt 0:00:06]} h6 {[%emt 0:00:27]} 7. Bh4 {[%emt 0:00:20]} Be7 {[%emt 0:00:21]} 8. Bd3 {[%emt 0:00:24]} O-O {[%emt 0:01:23]} 9. Qc2 {[%emt 0:00:41]} Re8 {[%emt 0:00:26]} 10. Nge2 {[%emt 0:02:35][%cal Bg1e2,Be2c1,Bc1b3][%mdl 32]} Nbd7 {[%emt 0:01:18][%cal Bb8d7,Bd7f8,Bf8e6][%mdl 32]} 11. O-O {[%emt 0:02:44]} Nh5 {[%emt 0:01:12]} 12. Bxe7 {[%emt 0:03:34] D36: Queen's Gambit Declined: Exchange Variation: Main line (5 Bg5 c6 6 Qc2).} Qxe7 {[%emt 0:00:06]} 13. Rae1 {[%emt 0:05:38]} Nf8 {[%emt 0:06:01]} 14. Nc1 {[%emt 0:09:34] White has an edge.} Nf6 {[%emt 0:00:59]} 15. Nb3 {[%emt 0:05:53]} Ne6 {[%emt 0:02:04]} 16. f3 {[%emt 0:00:48]} a5 {[%emt 0:09:07]} 17. Na4 {[%emt 0:07:32]} Qd8 {[%emt 0:05:11]} 18. Nbc5 {[%emt 0:05:21] [#]} b6 $146 {[%emt 0:18:45]} ({Predecessor:} 18... Nf8 19. Qb3 b5 20. Nc3 Ne6 21. Nxe6 Bxe6 22. Qc2 Qb6 23. Qf2 a4 24. Rc1 b4 {1-0 (79) Nepomniachtchi,I (2751)-Kramnik,V (2811) Zuerich 2017}) 19. Nxe6 {[%emt 0:00:27]} Rxe6 {[%emt 0:00:08]} 20. Re2 {[%emt 0:07:18]} Bd7 {[%emt 0:14:06]} 21. Rd1 {[%emt 0:04:44]} c5 {[%emt 0:10:54]} 22. Nc3 {[%emt 0:03:19]} Qe7 {[%emt 0:02:21]} 23. Qd2 {[%emt 0:04:06]} Re8 {[%emt 0:01:51][%cal Re6e3]} 24. Rde1 {[%emt 0:08:18]} cxd4 {[%emt 0:04:15]} 25. exd4 {[%emt 0:00:00]} Qb4 {[%emt 0:00:36]} 26. Rxe6 {[%emt 0:00:00]} Rxe6 {[%emt 0:00:06]} 27. Rxe6 {[%emt 0:00:00]} Bxe6 {[%emt 0:00:09]} 28. Bf1 {[%emt 0:03:01]} Ne8 {[%emt 0:06:22]} 29. a3 {[%emt 0:10:55]} Qd6 {[%emt 0:11:24]} 30. Nb5 {[%emt 0:00:00]} Qd8 {[%emt 0:00:30]} 31. Qf4 {[%emt 0:00:00]} Bd7 {[%emt 0:01:09]} 32. Nc3 {[%emt 0:00:00]} Bc6 {[%emt 0:02:54]} 33. Bd3 {[%emt 0:00:00]} Qg5 {[%emt 0:00:53]} 34. Qxg5 {[%emt 0:03:48]} hxg5 $11 {[%emt 0:00:01][%mdl 4096] Endgame KBN-KBN} 35. Kf2 {[%emt 0:00:32]} Kf8 {[%emt 0:00:56]} 36. Ke3 {[%emt 0:02:56]} Ke7 {[%emt 0:00:14]} 37. f4 {[%emt 0:04:09]} gxf4+ {[%emt 0:00:27]} 38. Kxf4 {[%emt 0:00:07]} Nc7 {[%emt 0:00:15] Against Bb5} 39. h4 {[%emt 0:01:00]} Ne6+ {[%emt 0:00:39]} 40. Ke3 {[%emt 0:00:20]} f6 {[%emt 0:00:46]} 41. g3 {[%emt 0:32:47]} Kd6 {[%emt 0:02:07]} 42. Bf5 {[%emt 0:09:15]} Nc7 {[%emt 0:01:45]} 43. Ne2 {[%emt 0:02:24]} Ke7 {[%emt 0:03:59]} 44. Nf4 {[%emt 0:00:00]} Ne8 {[%emt 0:01:45]} 45. Bd3 {[%emt 0:03:56]} Nc7 {[%emt 0:01:32]} 46. g4 {[%emt 0:00:00]} Bd7 {[%emt 0:11:24] The position is equal.} 47. g5 {[%emt 0:00:00]} fxg5 $1 {[%emt 0:01:20]} 48. hxg5 {[%emt 0:00:00]} Kd6 {[%emt 0:00:42]} 49. Nh5 {[%emt 0:00:00]} Ne6 {[%emt 0:00:14]} 50. g6 {[%emt 0:00:00] [#] Hoping for Bf5.} Be8 {[%emt 0:01:41]} 51. Bf5 {[%emt 0:00:00] Strongly threatening Bxe6.} Nf8 {[%emt 0:00:34]} 52. Nf4 {[%emt 0:00:00]} Bd7 {[%emt 0:00:37]} 53. Bc2 {[%emt 0:00:00]} Ne6 {[%emt 0:01:16]} 54. Nd3 {[%emt 0:00:00]} Be8 {[%emt 0:00:53]} 55. Ne5 {[%emt 0:00:00]} Ke7 {[%emt 0:01:03]} 56. Bd3 {[%emt 0:00:00]} Kf6 {[%emt 0:00:47]} 57. Ba6 {[%emt 0:00:00]} Nf8 {[%emt 0:02:44]} 58. Bd3 {[%emt 0:00:00]} Ne6 {[%emt 0:03:35]} 59. Ng4+ {[%emt 0:00:00]} Kg5 {[%emt 0:00:13]} 60. Ne5 {[%emt 0:00:00]} Kf6 {[%emt 0:00:08] An interesting draw.  Weighted Error Value: White=0.03 (flawless) /Black=0.03 (flawless)} 1/2-1/2